fUSD/lending_fUSD_20240518
["ID","MTS","AMOUNT","RATE_DAILY","PERIOD"]
[327416430,1716052236007,-500.0,0.0002986,2]
[327416431,1716052236017,-2069.03,0.0002986,2]
[327416432,1716052236026,-500.0,0.0002986,2]
[327416433,1716052236036,-581.47,0.0002986,2]
[327416434,1716052236045,-534.78,0.0002986,2]
[327416435,1716052236056,-500.0,0.0002986,2]
[327416436,1716052236065,-500.0,0.0002986,2]
[327416437,1716052236075,-500.0,0.0002986,2]
[327416438,1716052236085,-500.0,0.0002986,2]
[327416439,1716052236095,-500.0,0.0002986,2]
[327416440,1716052236104,-500.0,0.00029861,2]
[327416441,1716052236114,-500.0,0.00029861,2]
[327416442,1716052236123,-500.0,0.00029861,2]
[327416443,1716052236132,-500.0,0.00029861,2]
[327416444,1716052236340,-500.0,0.00029861,2]
[327416445,1716052236350,-500.0,0.00029861,2]
[327416446,1716052236360,-500.0,0.00029861,2]
[327416447,1716052236369,-500.0,0.00029861,2]
[327416448,1716052236379,-500.0,0.00029861,2]
[327416449,1716052236390,-506.2,0.00029861,2]
[327416450,1716052236399,-500.0,0.00029861,2]
[327416451,1716052236408,-500.0,0.00029861,2]
[327416452,1716052236418,-500.0,0.00029861,2]
[327416453,1716052236427,-500.0,0.00029861,2]
[327416454,1716052236437,-500.0,0.00029861,2]
[327416455,1716052236446,-500.0,0.00029861,2]
[327416456,1716052236456,-686.51,0.00029861,2]
[327416457,1716052236465,-500.0,0.00029861,2]
[327416458,1716052236474,-1379.42,0.00029861,2]
[327416459,1716052236484,-813.4,0.00029861,2]
[327416460,1716052236493,-500.0,0.00029861,2]
[327416461,1716052236502,-330.65,0.00029861,2]
[327416462,1716052236512,-500.0,0.00029861,2]
[327416463,1716052236521,-153.67,0.00029861,2]
[327416464,1716052236530,-500.0,0.00029861,2]
[327416465,1716052236539,-607.38,0.00029861,2]
[327416466,1716052236549,-500.0,0.00029861,2]
[327416467,1716052236558,-500.0,0.00029861,2]
[327416468,1716052236567,-500.0,0.00029861,2]
[327416469,1716052236577,-500.0,0.00029861,2]
[327416470,1716052236587,-500.0,0.00029861,2]
[327416471,1716052236596,-500.0,0.00029861,2]
[327416472,1716052236605,-500.0,0.00029861,2]
[327416473,1716052236615,-1090.26,0.00029861,2]
[327416474,1716052236625,-2263.84,0.00029861,2]
[327416475,1716052236634,-417.64,0.00029861,2]
[327416476,1716052236644,-500.0,0.00029861,2]
[327416477,1716052236653,-500.0,0.00029861,2]
[327416478,1716052236663,-563.62,0.00029861,2]
[327416479,1716052236673,-500.0,0.00029861,2]
[327416480,1716052236682,-500.0,0.00029861,2]
[327416481,1716052236692,-500.0,0.00029861,2]
[327416482,1716052236702,-500.0,0.00029861,2]
[327416483,1716052236711,-500.0,0.00029861,2]
[327416484,1716052236721,-660.09,0.00029863,2]
[327416485,1716052236731,-358.06,0.00029902,2]
[327416486,1716052236744,-151.0,0.00029998,7]
[327416487,1716052236754,-159.92,0.00030125,2]
[327416488,1716052236763,-500.0,0.00030133,2]
[327416489,1716052236773,-500.0,0.00030133,2]
[327416490,1716052236783,-500.0,0.00030133,2]
[327416491,1716052236792,-500.0,0.00030134,2]
[327416492,1716052236801,-502.61,0.00030134,2]
[327416493,1716052236811,-277.97,0.00030134,2]
[327416494,1716052236821,-447.18,0.00030134,2]
[327416495,1716052236830,-500.0,0.00030134,2]
[327416496,1716052236840,-268.36,0.00030134,2]
[327416497,1716052236849,-922.3,0.00030134,2]
[327416498,1716052236859,-599.41,0.00030134,2]
[327416499,1716052236868,-267.1,0.00030134,2]
[327416500,1716052236878,-500.0,0.00030134,2]
[327416501,1716052236887,-905.73,0.00030134,2]
[327416502,1716052236896,-500.0,0.00030134,2]
[327416503,1716052236906,-500.0,0.00030134,2]
[327416504,1716052236917,-500.0,0.00030134,2]
[327416505,1716052236929,-354.12,0.00030134,2]
[327416506,1716052236939,-500.0,0.00030134,2]
[327416507,1716052236949,-500.0,0.00030134,2]
[327416508,1716052236959,-500.0,0.00030134,2]
[327416509,1716052236968,-500.0,0.00030134,2]
[327416510,1716052236978,-500.0,0.00030134,2]
[327416511,1716052236987,-500.0,0.00030134,2]
[327416512,1716052237000,-809.46,0.00030134,2]
[327416513,1716052237010,-500.0,0.00030134,2]
[327416514,1716052237019,-500.0,0.00030134,2]
[327416515,1716052237029,-500.0,0.00030134,2]
[327416516,1716052237038,-500.0,0.00030134,2]
[327416517,1716052237047,-2069.03,0.00030134,2]
[327416518,1716052237057,-500.0,0.00030134,2]
[327416519,1716052237066,-581.47,0.00030134,2]
[327416520,1716052237076,-534.78,0.00030134,2]
[327416521,1716052237085,-500.0,0.00030134,2]
[327416522,1716052237094,-500.0,0.00030134,2]
[327416523,1716052237104,-500.0,0.00030134,2]
[327416524,1716052237113,-500.0,0.00030135,2]
[327416525,1716052237122,-199.7,0.00030135,2]
[327416526,1716052237132,-500.0,0.00030135,2]
[327416527,1716052237142,-500.0,0.00030135,2]
[327416528,1716052237151,-286.44,0.00030135,2]
[327416529,1716052237160,-500.0,0.00030135,2]
[327416530,1716052237170,-500.0,0.00030135,2]
[327416531,1716052237179,-500.0,0.00030135,2]
[327416532,1716052237189,-500.0,0.00030135,2]
[327416533,1716052237198,-500.0,0.00030135,2]
[327416534,1716052237208,-500.0,0.00030135,2]
[327416535,1716052237217,-500.0,0.00030135,2]
[327416536,1716052237227,-500.0,0.00030135,2]
[327416537,1716052237236,-500.0,0.00030135,2]
[327416538,1716052237245,-500.0,0.00030135,2]
[327416539,1716052237255,-686.51,0.00030135,2]
[327416540,1716052237264,-500.0,0.00030135,2]
[327416541,1716052237273,-1379.42,0.00030135,2]
[327416542,1716052237283,-813.4,0.00030135,2]
[327416543,1716052237292,-500.0,0.00030135,2]
[327416544,1716052237302,-500.0,0.00030135,2]
[327416545,1716052237311,-607.38,0.00030135,2]
[327416546,1716052237320,-500.0,0.00030135,2]
[327416547,1716052237330,-500.0,0.00030135,2]
[327416548,1716052237339,-433.5,0.00030135,2]
[327416549,1716052237348,-500.0,0.00030135,2]
[327416550,1716052237358,-500.0,0.00030135,2]
[327416551,1716052237368,-500.0,0.00030135,2]
[327416552,1716052237377,-1090.26,0.00030135,2]
[327416553,1716052237387,-2263.84,0.00030135,2]
[327416554,1716052237396,-500.0,0.00030135,2]
[327416555,1716052237405,-500.0,0.00030135,2]
[327416556,1716052237414,-563.62,0.00030135,2]
[327416557,1716052237423,-500.0,0.00030135,2]
[327416558,1716052237433,-500.0,0.00030135,2]
[327416559,1716052237443,-500.0,0.00030135,2]
[327416560,1716052237457,-500.0,0.00030135,2]
[327416561,1716052237478,-500.0,0.00030135,2]
[327416562,1716052237503,-660.09,0.00030136,2]
[327416563,1716052237526,-834.3,0.00030247,2]
[327416564,1716052237549,-869.28,0.00030247,2]
[327416565,1716052237572,-869.28,0.00030247,2]
[327416566,1716052237596,-10000.0,0.0003026,2]
[327416567,1716052237620,-196.84,0.00030407,2]
[327416568,1716052237629,-360.54601169,0.00030407,2]
[327416573,1716052238840,-500.0,0.0002986,2]
[327416574,1716052238851,-650.83,0.0002986,2]
[327416575,1716052238860,-650.83,0.00030134,2]
[327416576,1716052238869,-6083.86206111,0.0003026,2]
[327416699,1716052240433,-1009.71667059,0.0003026,2]
[327416716,1716052240584,-910.8743891,0.0003026,2]
[327416719,1716052240596,-1565.88293792,0.0003026,2]
[327416721,1716052240608,-429.66394128,0.0003026,2]
[327416723,1716052240618,-1130.38605876,0.0003026,2]
[327416725,1716052240630,-1942.24099437,0.0003026,2]
[327416727,1716052240639,-70.53184833,0.00030407,2]
[327416747,1716052240885,-68.92213998,0.00030407,2]
[327416748,1716052240895,-500.0,0.00030407,2]
[327416749,1716052240904,-500.0,0.00030408,2]
[327416750,1716052240913,-385.87158502,0.00030408,2]
[327416754,1716052240937,-116.73841498,0.00030408,2]
[327416756,1716052240946,-500.0,0.00030408,2]
[327416758,1716052240955,-922.3,0.00030408,2]
[327416760,1716052240965,-500.0,0.00030408,2]
[327416762,1716052240974,-905.73,0.00030408,2]
[327416764,1716052240983,-500.0,0.00030408,2]
[327416766,1716052240992,-500.0,0.00030408,2]
[327416768,1716052241001,-500.0,0.00030408,2]
[327416770,1716052241012,-500.0,0.00030408,2]
[327416772,1716052241021,-500.0,0.00030408,2]
[327416774,1716052241030,-500.0,0.00030408,2]
[327416776,1716052241040,-500.0,0.00030408,2]
[327416778,1716052241049,-500.0,0.00030408,2]
[327416780,1716052241058,-809.46,0.00030408,2]
[327416782,1716052241068,-500.0,0.00030408,2]
[327416784,1716052241077,-500.0,0.00030408,2]
[327416786,1716052241087,-500.0,0.00030408,2]
[327416788,1716052241096,-2069.03,0.00030408,2]
[327416790,1716052241105,-500.0,0.00030408,2]
[327416792,1716052241114,-581.47,0.00030408,2]
[327416793,1716052241123,-534.78,0.00030408,2]
[327416796,1716052241132,-500.0,0.00030408,2]
[327416797,1716052241142,-500.0,0.00030408,2]
[327416800,1716052241151,-500.0,0.00030408,2]
[327416802,1716052241161,-650.83,0.00030408,2]
[327416804,1716052241170,-500.0,0.00030409,2]
[327416806,1716052241179,-500.0,0.00030409,2]
[327416807,1716052241188,-500.0,0.00030409,2]
[327416810,1716052241198,-500.0,0.00030409,2]
[327416811,1716052241207,-500.0,0.00030409,2]
[327416814,1716052241216,-500.0,0.00030409,2]
[327416816,1716052241225,-500.0,0.00030409,2]
[327416818,1716052241234,-343.26649224,0.00030409,2]
[327416831,1716052243550,-500.0,0.0002986,2]
[327416832,1716052243560,-500.0,0.00030134,2]
[327416833,1716052243571,-156.73350776,0.00030409,2]
[327416834,1716052243581,-500.0,0.00030409,2]
[327416835,1716052243592,-500.0,0.00030409,2]
[327416836,1716052243602,-500.0,0.00030409,2]
[327416837,1716052243612,-44.9534312,0.00030409,2]
[327416838,1716052243685,-455.0465688,0.00030409,2]
[327416839,1716052243695,-37.23141109,0.00030409,2]
[327416845,1716052246298,-500.0,0.00030408,2]
[327416846,1716052246307,-454.06112937,0.00030409,2]
[327416847,1716052246541,-8.70745954,0.00030409,2]
[327416848,1716052246550,-1379.42,0.00030409,2]
[327416849,1716052246560,-500.0,0.00030409,2]
[327416850,1716052246569,-607.38,0.00030409,2]
[327416851,1716052246579,-500.0,0.00030409,2]
[327416852,1716052246588,-500.0,0.00030409,2]
[327416853,1716052246597,-500.0,0.00030409,2]
[327416854,1716052246606,-500.0,0.00030409,2]
[327416855,1716052246615,-500.0,0.00030409,2]
[327416856,1716052246624,-1090.26,0.00030409,2]
[327416857,1716052246633,-2263.84,0.00030409,2]
[327416858,1716052246642,-500.0,0.00030409,2]
[327416859,1716052246652,-500.0,0.00030409,2]
[327416860,1716052246661,-563.62,0.00030409,2]
[327416861,1716052246670,-500.0,0.00030409,2]
[327416862,1716052246680,-500.0,0.00030409,2]
[327416863,1716052246689,-500.0,0.00030409,2]
[327416864,1716052246698,-500.0,0.00030409,2]
[327416866,1716052246707,-500.0,0.00030409,2]
[327416868,1716052246716,-660.09,0.0003041,2]
[327416869,1716052246726,-151.0,0.0003061,4]
[327416870,1716052246735,-65934.82303656,0.00030655,30]
[327416871,1716052246746,-1633.475,0.00030655,30]
[327416872,1716052322692,155.0,0.00017259,2]
[327416875,1716052513662,189.95,0.00028222,120]
[327416876,1716052701394,150.0,0.00013973,2]
[327416877,1716052701417,14.46,0.00013973,2]
[327416891,1716053334426,2644.65409,0.0002449,18]
[327416916,1716053431812,-150.0,0.00019725,2]
[327416917,1716053431821,-156.76,0.00026212,2]
[327416918,1716053431831,-28.15,0.00026864,2]
[327416919,1716053431843,-971.85,0.00026864,2]
[327416920,1716053431852,-269.03,0.00026864,2]
[327416921,1716053431861,-155.0,0.00026963,2]
[327416922,1716053431871,-298.78407833,0.00026964,2]
[327416923,1716053431880,-687.87,0.00028006,2]
[327416924,1716053431890,-200.0,0.00028039,2]
[327416925,1716053431899,-250.0,0.00028047,2]
[327416926,1716053431909,-250.0,0.00028078,2]
[327416927,1716053431918,-355.52,0.00028085,2]
[327416928,1716053431963,-1025.2,0.00028336,2]
[327416929,1716053431974,-849.0,0.000284,2]
[327416930,1716053431983,-787.74592167,0.0002928,2]
[327416932,1716053431994,-322.20158371,0.0002928,2]
[327416933,1716053432016,-1304.0,0.0002928,2]
[327416947,1716053437663,-541.85999999,0.0002928,2]
[327416948,1716053437676,-373.57,0.0002928,2]
[327416949,1716053437726,-26887.06256333,0.0002928,2]
[327416950,1716053437974,-4418.92460998,0.0002928,2]
[327416952,1716053437986,-604.9,0.00029313,2]
[327416954,1716053437996,-525.95170268,0.00029313,2]
[327416956,1716053438005,-500.0,0.00029313,2]
[327416958,1716053438015,-519.59169413,0.00029313,2]
[327416960,1716053438023,-500.0,0.00029313,2]
[327416962,1716053438033,-508.06818669,0.00029313,2]
[327416963,1716053438043,-302.32252036,0.00029313,2]
[327416965,1716053438052,-310.94924465,0.00029313,2]
[327416967,1716053438062,-509.48298877,0.00029313,2]
[327416969,1716053438072,-504.03018733,0.00029313,2]
[327416971,1716053438081,-500.0,0.00029313,2]
[327416973,1716053438091,-500.0,0.00029313,2]
[327416975,1716053438100,-150.0,0.00029562,2]
[327416977,1716053438110,-5079.1728,0.00029663,2]
[327416979,1716053438120,-500.0,0.0003,30]
[327416981,1716053438130,-1005.22632899,0.0003,2]
[327416983,1716053438140,-235382.34866769,0.0003,2]
[327416984,1716053438156,-804.4421225,0.0003,2]
[327416985,1716053438169,-25937.07338301,0.0003,2]
[327416988,1716053439769,-207.58340724,0.00026112,2]
[327416989,1716053439779,-1813.11188519,0.0003,2]
[327416990,1716053439792,-1194.7797035,0.0003,2]
[327416991,1716053439804,-1715.43,0.0003,2]
[327416992,1716053439815,-494.80518685,0.0003,2]
[327416993,1716053439827,-536.41837282,0.0003,2]
[327416994,1716053439843,-26140.21187616,0.0003,2]
[327416995,1716053439854,-5000.0,0.0003,2]
[327416996,1716053439914,-681.37880228,0.0003,2]
[327416997,1716053439924,-500.0,0.00030133,2]
[327416998,1716053439936,-503.71684629,0.00030133,2]
[327416999,1716053439946,-500.0,0.00030133,2]
[327417000,1716053439956,-7739.0445,0.000302,2]
[327417001,1716053439966,-1222.58060653,0.00030245,2]
[327417002,1716053439976,-1055.41535122,0.0003026,2]
[327417003,1716053439987,-1339.49,0.00030299,4]
[327417004,1716053439998,-1389.7141291,0.000303,5]
[327417005,1716053440011,-2119.16111,0.000303,5]
[327417006,1716053440062,-3028.025,0.000303,5]
[327417019,1716053442831,-5139.80365124,0.000303,5]
[327417020,1716053442843,-605.64563326,0.000303,5]
[327417021,1716053442854,-17907.72454798,0.000303,5]
[327417022,1716053443014,-856.79557589,0.000303,5]
[327417024,1716053445565,-207.58340724,0.00026438,2]
[327417025,1716053445575,-87957.63226153,0.000303,5]
[327417026,1716053445584,-159.92,0.00030395,2]
[327417027,1716053445594,-500.0,0.00030404,2]
[327417028,1716053445603,-500.0,0.00030404,2]
[327417029,1716053445612,-500.0,0.00030404,2]
[327417030,1716053445621,-500.0,0.00030404,2]
[327417031,1716053445631,-500.0,0.00030404,2]
[327417032,1716053445640,-500.0,0.00030404,2]
[327417033,1716053445649,-500.0,0.00030404,2]
[327417034,1716053445659,-500.0,0.00030404,2]
[327417035,1716053445668,-500.0,0.00030404,2]
[327417036,1716053445678,-500.0,0.00030404,2]
[327417037,1716053445687,-500.0,0.00030404,2]
[327417038,1716053445697,-500.0,0.00030404,2]
[327417039,1716053445707,-500.0,0.00030404,2]
[327417040,1716053445717,-500.0,0.00030404,2]
[327417041,1716053445728,-500.0,0.00030404,2]
[327417042,1716053445738,-500.0,0.00030404,2]
[327417043,1716053445748,-1533.0,0.00030404,2]
[327417044,1716053445759,-500.0,0.00030404,2]
[327417045,1716053445771,-500.0,0.00030404,2]
[327417046,1716053445781,-2753.07,0.00030404,2]
[327417047,1716053445790,-500.0,0.00030404,2]
[327417048,1716053445799,-500.0,0.00030404,2]
[327417049,1716053445810,-500.0,0.00030404,2]
[327417050,1716053445821,-500.0,0.00030404,2]
[327417051,1716053445831,-500.0,0.00030404,2]
[327417052,1716053445842,-500.0,0.00030404,2]
[327417053,1716053445851,-500.0,0.00030404,2]
[327417054,1716053445861,-500.0,0.00030404,2]
[327417055,1716053445872,-500.0,0.00030404,2]
[327417056,1716053445882,-500.0,0.00030404,2]
[327417057,1716053445891,-500.0,0.00030404,2]
[327417058,1716053445901,-500.0,0.00030404,2]
[327417059,1716053445910,-500.0,0.00030404,2]
[327417060,1716053445920,-500.0,0.00030405,2]
[327417061,1716053445930,-500.0,0.00030405,2]
[327417062,1716053445939,-413.84850065,0.00030405,2]
[327417063,1716053445949,-500.0,0.00030405,2]
[327417064,1716053445958,-500.0,0.00030405,2]
[327417065,1716053445969,-350.3,0.00030405,2]
[327417066,1716053445978,-500.0,0.00030405,2]
[327417067,1716053445988,-500.0,0.00030405,2]
[327417068,1716053445998,-500.0,0.00030405,2]
[327417069,1716053446008,-500.0,0.00030405,2]
[327417070,1716053446017,-500.0,0.00030405,2]
[327417071,1716053446027,-251.23052094,0.00030405,2]
[327417072,1716053471053,-204.82140187,0.00017259,2]
[327417073,1716053489935,151.71,0.00028406,120]
[327417074,1716053492085,-450.17859813,0.00017259,2]
[327417076,1716053582865,-150.0,0.00017258,2]
[327417077,1716053660733,-207.58340724,0.00017159,2]
[327417078,1716053919156,150.0,0.00010408,2]
[327417079,1716053919178,150.0,0.00010408,2]
[327417080,1716053919199,150.0,0.00010408,2]
[327417081,1716053919220,150.0,0.00010408,2]
[327417082,1716053919250,150.0,0.00010408,2]
[327417083,1716053919272,150.0,0.00010408,2]
[327417084,1716053919293,150.0,0.00010408,2]
[327417085,1716053919314,150.0,0.00010408,2]
[327417086,1716053919335,157.22562246,0.00010408,2]
[327417087,1716053919361,13371.77437754,0.00010408,2]
[327417088,1716054251568,9900.0,0.0003,90]
[327417089,1716054318072,5206.0,0.0003,90]
[327417090,1716054525540,-155.0,0.00017257,2]
[327417091,1716054525562,-150.0,0.00017258,2]
[327417092,1716054525583,-1505.0,0.00017258,2]
[327417093,1716054528655,-1502.86436353,0.00017258,2]
[327417094,1716054528676,-752.21176158,0.00017259,2]
[327417095,1716054528696,-180.07303242,0.00017259,2]
[327417096,1716054528717,-298.78407833,0.00017259,2]
[327417097,1716054530058,189.95,0.00028044,120]
[327417116,1716054595901,150.0,0.00017259,2]
[327417117,1716054595923,1266.06676414,0.00017259,2]
[327417118,1716054595947,480.55323586,0.00017259,2]
[327417121,1716054631962,-150.0,0.00018984,2]
[327417122,1716054631972,-150.0,0.000229,2]
[327417123,1716054631982,-156.53,0.00026708,2]
[327417124,1716054631991,-155.0,0.00028063,2]
[327417125,1716054632000,-250.0,0.00028064,2]
[327417126,1716054632009,-1895.25,0.00028135,2]
[327417127,1716054632018,-200.0,0.00028502,2]
[327417128,1716054632027,-972.62,0.00028504,2]
[327417129,1716054632036,-150.0,0.00028521,2]
[327417130,1716054632046,-1711.71,0.00028556,2]
[327417131,1716054632055,-20978.64,0.00028575,2]
[327417132,1716054632065,-250.0,0.00028592,2]
[327417133,1716054632078,-10264.42,0.00028605,2]
[327417134,1716054632087,-250.0,0.00028619,2]
[327417135,1716054632096,-829.86,0.00028712,2]
[327417136,1716054632106,-1296.85747937,0.00028783,2]
[327417137,1716054632115,-476.19200871,0.00028786,2]
[327417138,1716054632125,-550.29,0.00028796,2]
[327417139,1716054632134,-2069.9576248,0.00028972,30]
[327417140,1716054632143,-500.0,0.000295,10]
[327417141,1716054632153,-1000.0,0.000296,10]
[327417142,1716054632163,-1500.0,0.000297,10]
[327417143,1716054632172,-2000.0,0.000298,10]
[327417144,1716054632182,-518.18123413,0.00029892,2]
[327417145,1716054632192,-2500.0,0.000299,10]
[327417146,1716054632201,-2582.3635073,0.00029975,30]
[327417147,1716054632210,-240.34,0.0002999,3]
[327417148,1716054632219,-159.93,0.0002999,2]
[327417149,1716054632228,-2555.73091841,0.00029999,2]
[327417150,1716054632239,-500.0,0.00029999,2]
[327417151,1716054632248,-500.0,0.00029999,2]
[327417152,1716054632257,-500.0,0.00029999,2]
[327417153,1716054632267,-500.0,0.00029999,2]
[327417154,1716054632276,-23816.76025954,0.0003,3]
[327417155,1716054632285,-66645.65478185,0.0003,2]
[327417156,1716054632297,-291.44373864,0.0003,2]
[327417157,1716054632315,-67024.1568094,0.0003,2]
[327417158,1716054632330,-116038.74467011,0.0003,2]
[327417159,1716054632339,-3000.0,0.000301,2]
[327417160,1716054632348,-2500.0,0.00030111,30]
[327417161,1716054632357,-151.0,0.00030191,2]
[327417162,1716054632368,-1650.1494,0.000302,2]
[327417163,1716054632377,-1000.0,0.000302,2]
[327417164,1716054632386,-1193.38891704,0.000302,2]
[327417165,1716054632396,-1193.38891704,0.00030201,2]
[327417166,1716054632405,-209.19693991,0.00030202,2]
[327417167,1716054632414,-467.58385926,0.00030202,2]
[327417168,1716054632424,-1193.38891704,0.00030202,2]
[327417169,1716054632433,-168.12763501,0.00030202,2]
[327417170,1716054632442,-157.1335353,0.00030202,2]
[327417171,1716054632452,-10439.26398916,0.00030203,2]
[327417172,1716054632462,-164.5362797,0.00030203,2]
[327417173,1716054632471,-500.0,0.00030273,2]
[327417174,1716054632480,-500.0,0.00030273,2]
[327417175,1716054632490,-500.0,0.00030273,2]
[327417176,1716054632500,-500.0,0.00030273,2]
[327417177,1716054632509,-99145.48321758,0.00030288,5]
[327417178,1716054632518,-164.3,0.00030292,2]
[327417179,1716054632529,-164.3,0.00030293,2]
[327417180,1716054632539,-27457.15732316,0.00030294,3]
[327417181,1716054632549,-35350.68361235,0.00030298,4]
[327417182,1716054632561,-500.0,0.00030298,2]
[327417183,1716054632571,-500.0,0.00030298,2]
[327417184,1716054632580,-500.0,0.00030298,2]
[327417185,1716054632589,-585.77,0.00030298,2]
[327417186,1716054632599,-500.0,0.00030298,2]
[327417187,1716054632608,-500.0,0.00030298,2]
[327417188,1716054632618,-500.0,0.00030298,2]
[327417189,1716054632627,-500.0,0.00030298,2]
[327417190,1716054632636,-500.0,0.00030298,2]
[327417191,1716054632646,-609.23,0.00030298,2]
[327417192,1716054632657,-500.0,0.00030298,2]
[327417193,1716054632668,-500.0,0.00030298,2]
[327417194,1716054632677,-635.67,0.00030298,2]
[327417195,1716054632686,-500.0,0.00030298,2]
[327417196,1716054632696,-560.92,0.00030298,2]
[327417197,1716054632705,-500.0,0.00030298,2]
[327417198,1716054632714,-590.04,0.00030298,2]
[327417199,1716054632724,-500.0,0.00030298,2]
[327417200,1716054632734,-500.0,0.00030298,2]
[327417201,1716054632743,-2409.91,0.00030298,2]
[327417202,1716054632753,-302.39961943,0.00030298,2]
[327417203,1716054632762,-734.62,0.00030298,2]
[327417204,1716054632773,-500.0,0.00030298,2]
[327417205,1716054632782,-4306.52,0.00030298,2]
[327417206,1716054632791,-500.0,0.00030298,2]
[327417207,1716054632801,-500.0,0.00030298,2]
[327417208,1716054632810,-500.0,0.00030298,2]
[327417209,1716054632819,-585.08,0.00030298,2]
[327417210,1716054632828,-500.0,0.00030299,2]
[327417211,1716054632837,-500.0,0.00030299,2]
[327417212,1716054632846,-500.0,0.00030299,2]
[327417213,1716054632856,-500.0,0.00030299,2]
[327417214,1716054632866,-500.0,0.00030299,2]
[327417215,1716054632879,-500.0,0.00030299,2]
[327417216,1716054632888,-500.0,0.00030299,2]
[327417217,1716054632898,-500.0,0.00030299,2]
[327417218,1716054632910,-500.0,0.00030299,2]
[327417219,1716054632920,-500.0,0.00030299,2]
[327417220,1716054632930,-500.0,0.00030299,2]
[327417221,1716054632939,-500.0,0.00030299,2]
[327417222,1716054632951,-500.0,0.00030299,2]
[327417223,1716054632960,-500.0,0.00030299,2]
[327417224,1716054632969,-500.0,0.00030299,2]
[327417225,1716054632978,-500.0,0.00030299,2]
[327417226,1716054632989,-500.0,0.00030299,2]
[327417227,1716054632998,-500.0,0.00030299,2]
[327417228,1716054633007,-500.0,0.00030299,2]
[327417229,1716054633017,-500.0,0.00030299,2]
[327417230,1716054633026,-500.0,0.00030299,2]
[327417231,1716054633035,-500.0,0.00030299,2]
[327417232,1716054633044,-500.0,0.00030299,2]
[327417233,1716054633054,-500.0,0.00030299,2]
[327417234,1716054633064,-500.0,0.00030299,2]
[327417235,1716054633074,-500.0,0.00030299,2]
[327417236,1716054633083,-500.0,0.00030299,2]
[327417237,1716054633092,-500.0,0.00030299,2]
[327417238,1716054633102,-500.0,0.00030299,2]
[327417239,1716054633111,-500.0,0.00030299,2]
[327417240,1716054633120,-500.0,0.00030299,2]
[327417241,1716054633130,-500.0,0.00030299,2]
[327417242,1716054633139,-500.0,0.00030299,2]
[327417243,1716054633148,-500.0,0.00030299,2]
[327417244,1716054633157,-500.0,0.00030299,2]
[327417245,1716054633166,-500.0,0.00030299,2]
[327417246,1716054633175,-500.0,0.00030299,2]
[327417247,1716054633185,-500.0,0.00030299,2]
[327417248,1716054633195,-500.0,0.00030299,2]
[327417249,1716054633204,-500.0,0.00030299,2]
[327417250,1716054633213,-500.0,0.00030299,2]
[327417251,1716054633223,-500.0,0.00030299,2]
[327417252,1716054633232,-500.0,0.00030299,2]
[327417253,1716054633241,-500.0,0.00030299,2]
[327417254,1716054633251,-514.30760071,0.00030299,2]
[327417255,1716054633260,-500.0,0.00030299,2]